bitfinex-derivatives/quotes_ETHF0:USTF0_20240904
["timestamp","ask_amount","ask_price","bid_price","bid_amount"]
[1725467817942,3.21383355,2487.3,2486.5,0.9722]
[1725467818146,1.00513,2487.1,2486.5,1.37434]
[1725467818347,0.40211,2486.8,2486.5,1.37434]
[1725467818843,1.00517,2487.0,2486.5,0.9722]
[1725467819050,0.40212,2486.7,2486.5,0.9722]
[1725467819349,0.40212,2486.7,2486.5,1.37435]
[1725467819645,0.40211,2486.8,2486.5,1.37435]
[1725467820343,1.20893124,2487.3,2486.6,7.2294]
[1725467820344,0.00603355,2487.3,2486.6,7.2294]
[1725467820546,0.00603355,2487.3,2486.9,3.2078]
[1725467820751,0.00603355,2487.3,2487.2,0.40203]
[1725467821244,0.00603355,2487.3,2487.2,7.63063]
[1725467821447,3.2078,2487.9,2487.3,1.00505]
[1725467821647,0.40185,2488.4,2487.8,3.2078]
[1725467821847,1.00433,2489.1,2488.0,3.2078]
[1725467822147,1.00436,2489.0,2488.4,3.2078]
[1725467822450,0.40178,2488.8,2488.5,3.61564355]
[1725467822647,0.00603355,2488.9,2488.5,3.21383355]
[1725467822847,0.40181,2488.6,2488.5,3.21383355]
[1725467823152,0.40181,2488.6,2488.5,0.00603355]
[1725467823352,4.42021,2488.6,2488.5,0.00603355]
[1725467823855,5.42474,2488.6,2488.5,0.00603355]
[1725467824151,11.42474,2488.6,2488.5,0.00603355]
[1725467824455,11.42474,2488.6,2487.7,3.2078]
[1725467824456,0.4019,2488.1,2487.7,3.2078]
[1725467824751,0.40193,2487.9,2487.7,3.2078]
[1725467824941,0.40181,2488.6,2488.1,0.40188]
[1725467825139,0.4702,2488.7,2488.1,3.2078]
[1725467825344,0.4702,2488.7,2487.8,11.19296821]
[1725467825345,0.20134093,2488.6,2488.2,0.00603355]
[1725467825652,0.40185,2488.4,2488.2,0.00603355]
[1725467825851,0.40186,2488.3,2488.2,0.00603355]
[1725467826349,4.42106,2488.3,2488.2,0.00603355]
[1725467826551,0.60794688,2488.3,2488.2,0.00603355]
[1725467828452,11.63179688,2488.3,2488.2,0.00603355]
[1725467828655,17.61959688,2488.3,2488.2,0.00603355]
[1725467828852,18.62424688,2488.3,2488.2,0.00603355]
[1725467829854,0.40194,2487.8,2487.7,3.2078]
[1725467830049,0.40194,2487.8,2487.3,3.2078]
[1725467830251,1.00497,2487.5,2486.8,3.60989]
[1725467830451,0.40205,2487.2,2486.8,3.60989]
[1725467830653,0.40207,2487.0,2486.8,3.2078]
[1725467830856,0.00603355,2487.1,2486.8,3.2078]
[1725467831062,3.2078,2488.4,2487.0,2.78]
[1725467831262,3.2078,2488.4,2486.9,12.59094102]
[1725467831263,1.00469,2488.2,2487.5,0.40198]
[1725467831461,0.40193,2487.9,2487.5,0.40198]
[1725467831765,0.40193,2487.9,2487.6,0.40197]
[1725467832058,0.40192,2487.9,2487.7,3.2078]
[1725467832262,0.40194,2487.8,2487.7,3.2078]
[1725467832457,0.00603355,2488.0,2487.4,3.693]
[1725467832655,1.00481,2487.9,2487.4,3.2078]
[1725467832853,0.40203,2487.3,2486.8,0.4852]
[1725467833071,0.40203,2487.3,2487.0,0.40206]
[1725467833256,2.78,2487.4,2486.8,12.22965021]
[1725467833462,0.40208,2486.9,2486.7,0.00603355]
[1725467833766,0.4021,2486.8,2486.7,0.00603355]
[1725467834464,0.87028,2487.0,2486.7,0.00603355]
[1725467834660,0.4682,2487.0,2486.7,0.00603355]
[1725467834866,2.78,2487.4,2486.7,0.40813355]
[1725467835164,0.40204,2487.2,2486.7,0.00603355]
[1725467835360,0.40205,2487.1,2486.7,0.00603355]
[1725467835559,1.00498,2487.5,2486.7,0.00603355]
[1725467835863,0.40204,2487.2,2486.8,0.4021]
[1725467836065,3.2482,2487.7,2486.9,3.2078]
[1725467836259,3.2482,2487.7,2487.0,0.40206]
[1725467836459,0.40201,2487.4,2487.0,0.40206]
[1725467836854,0.4682,2487.7,2486.9,3.6939]
[1725467837062,0.87016,2487.7,2487.2,3.2078]
[1725467837260,0.87016,2487.7,2487.2,3.60982]
[1725467837457,0.4682,2487.7,2487.2,3.2078]
[1725467837655,0.00603355,2488.0,2487.2,3.60983]
[1725467837863,0.40197,2487.6,2487.2,3.60983]
[1725467838058,1.00484,2487.9,2486.9,3.6939]
[1725467838461,0.402,2487.4,2486.9,3.6939]
[1725467838663,0.40202,2487.3,2487.2,79.75]
[1725467839072,1.00481,2487.9,2487.2,79.75]
[1725467839260,1.00489,2487.7,2487.2,79.75]
[1725467839467,0.40202,2487.3,2487.2,79.75]
[1725467839766,5.42787,2487.3,2487.2,79.75]
[1725467839955,1.40707,2487.3,2487.2,79.75]
[1725467840161,5.42787,2487.3,2487.2,79.75]
[1725467840664,11.42787,2487.3,2487.2,79.75]
[1725467840863,12.43292,2487.3,2487.2,78.89443]
[1725467841168,12.43292,2487.3,2487.2,70.55742001]
[1725467841363,12.43292,2487.3,2487.2,70.46812001]
[1725467841364,14.44303,2487.3,2487.2,70.46812001]
[1725467841665,14.63978758,2487.3,2487.2,69.38049001]
[1725467841863,14.63978758,2487.3,2487.2,65.85350958]
[1725467842066,14.44303,2487.3,2487.2,61.76600958]
[1725467842263,14.64051169,2487.3,2487.2,58.15094049]
[1725467842461,14.64051169,2487.3,2487.2,57.65094049]
[1725467842660,14.64051169,2487.3,2487.2,56.14440049]
[1725467842862,12.63040169,2487.3,2487.2,55.13406049]
[1725467843071,12.43292,2487.3,2487.2,53.98950049]
[1725467843261,12.43292,2487.3,2487.2,52.96915049]
[1725467843455,12.43292,2487.3,2487.2,51.76872049]
[1725467843754,12.63549441,2487.3,2487.2,49.41507049]
[1725467844072,12.43292,2487.3,2487.2,46.91245049]
[1725467844462,5.42787,2487.3,2487.2,46.91245049]
[1725467844667,5.63321995,2487.3,2487.2,46.91245049]
[1725467844866,11.63321995,2487.3,2487.2,46.91245049]
[1725467845069,11.42787,2487.3,2487.2,46.91245049]
[1725467845370,0.40202,2487.3,2487.2,46.91245049]
[1725467845569,0.60101436,2487.3,2487.2,46.91245049]
[1725467845772,0.19893403,2487.5,2487.2,46.91245049]
[1725467845963,0.40201,2487.4,2487.2,46.91245049]
[1725467846266,0.19893403,2487.5,2487.2,46.91245049]
[1725467846568,0.60092403,2487.5,2487.2,46.91245049]
[1725467846972,0.19893403,2487.5,2487.2,47.31448049]
[1725467847274,0.19893403,2487.5,2487.2,46.91245049]
[1725467847461,1.40707,2487.3,2487.2,46.91245049]
[1725467847764,2.41212,2487.3,2487.2,46.91245049]
[1725467848074,12.43292,2487.3,2487.2,46.91245049]
[1725467848275,12.43292,2487.3,2487.2,45.88599049]
[1725467848569,12.43292,2487.3,2487.2,40.35192153]
[1725467848769,12.63521609,2487.3,2487.2,39.31815153]
[1725467848967,12.63521609,2487.3,2487.2,38.47829153]
[1725467849166,11.63016609,2487.3,2487.2,38.47829153]
[1725467849567,11.42787,2487.3,2487.2,38.27829153]
[1725467849768,11.62545966,2487.3,2487.2,38.27829153]
[1725467849970,12.63050966,2487.3,2487.2,38.27829153]
[1725467850166,12.43292,2487.3,2487.2,36.60765493]
[1725467850375,12.82624779,2487.3,2487.2,36.32315493]
[1725467850774,11.82119779,2487.3,2487.2,36.32315493]
[1725467850976,5.82119779,2487.3,2487.2,36.32315493]
[1725467851182,11.82119779,2487.3,2487.2,36.32315493]
[1725467851661,12.82624779,2487.3,2487.2,36.32315493]
[1725467852171,4.81614779,2487.3,2487.2,36.32315493]
[1725467852471,0.60487925,2487.3,2487.2,36.32315493]
[1725467853568,11.63072925,2487.3,2487.2,36.32315493]
[1725467853776,4.62567925,2487.3,2487.2,36.32315493]
[1725467853978,0.60487925,2487.3,2487.2,36.32315493]
[1725467854276,0.20285925,2487.3,2487.2,36.32315493]
[1725467854671,3.60979,2487.5,2487.1,0.40204]
[1725467855067,3.2078,2487.5,2486.9,3.6736]
[1725467855276,0.0323,2487.6,2487.2,3.2078]
[1725467855470,0.2334849,2487.6,2487.3,0.402]
[1725467855870,0.2334849,2487.6,2487.4,0.4607]
[1725467856474,0.2334849,2487.6,2486.9,0.4658]
[1725467856780,0.40199,2487.5,2487.1,0.40204]
[1725467857273,0.402,2487.4,2487.0,0.90996]
[1725467857663,0.40203,2487.3,2487.0,0.5079]
[1725467857866,0.40204,2487.2,2487.0,0.5079]
[1725467858067,0.40203,2487.3,2487.0,0.5079]
[1725467858274,1.2384449,2487.6,2487.0,0.5079]
[1725467858475,0.402,2487.4,2487.0,0.90995]
[1725467858777,0.40202,2487.3,2487.0,0.5079]
[1725467858975,0.40204,2487.2,2487.0,0.5079]
[1725467859171,1.00503,2487.4,2487.0,0.5079]
[1725467859370,0.40202,2487.3,2487.0,0.5079]
[1725467859972,0.40203,2487.3,2487.0,0.5079]
[1725467860278,0.40203,2487.2,2487.0,0.5079]
[1725467860475,1.00501,2487.4,2487.0,0.5079]
[1725467860977,1.40724,2487.0,2486.9,0.4658]
[1725467861176,1.40735,2486.8,2486.7,0.00603355]
[1725467861370,5.6204,2486.8,2486.7,0.00603355]
[1725467861570,15.642,2486.8,2486.7,0.00603355]
[1725467861776,8.23466,2486.8,2486.1,0.9097]
[1725467861973,8.23466,2486.8,2486.2,0.4384]
[1725467861974,0.40216,2486.5,2486.2,0.4384]
[1725467862667,0.40216,2486.4,2486.2,0.4384]
[1725467862873,0.19895675,2486.3,2486.2,0.4384]
[1725467863074,0.40216,2486.5,2486.2,0.4384]
[1725467863475,0.00603355,2486.6,2486.2,0.4384]
[1725467863678,0.40209,2486.9,2486.5,0.40214]
[1725467864581,0.40208,2486.9,2486.5,0.40214]
[1725467864780,0.00603355,2486.9,2486.3,3.2078]
[1725467864971,0.00603355,2486.9,2486.5,0.40214]
[1725467864972,0.40811355,2486.9,2486.5,0.40214]
[1725467865176,0.00603355,2486.9,2486.7,0.40211]
[1725467865381,0.00603355,2486.9,2486.8,0.8935]
[1725467866674,0.40811355,2486.9,2486.8,0.8935]
[1725467866873,0.00603355,2486.9,2486.8,0.8935]
[1725467867081,0.00603355,2486.9,2486.8,1.2956]
[1725467867579,0.40811355,2486.9,2486.8,0.8935]
[1725467869076,0.40214,2486.6,2486.2,0.84059]
[1725467869276,0.40213,2486.6,2486.5,0.4361]
[1725467869475,0.40212,2486.7,2486.5,0.4361]
[1725467869882,0.40213,2486.6,2486.5,0.4361]
[1725467870073,0.40212,2486.7,2486.5,0.4361]
[1725467870272,1.00526,2486.8,2486.5,0.4361]
[1725467870473,0.40213,2486.6,2486.5,0.4361]
[1725467871075,1.40746,2486.6,2486.5,0.4361]
[1725467871275,1.40757,2486.4,2486.3,0.4418]
[1725467871475,1.40763,2486.3,2486.2,0.4384]
[1725467871671,1.61028731,2486.3,2486.2,0.4384]
[1725467872287,1.4077,2486.2,2486.1,0.00603355]
[1725467872676,0.4022,2486.2,2486.1,0.00603355]
[1725467872885,1.4077,2486.2,2486.1,0.00603355]
[1725467873279,9.2156,2486.2,2486.1,0.00603355]
[1725467873695,9.41532083,2486.2,2486.1,0.00603355]
[1725467873986,0.40219,2486.3,2486.1,0.00603355]
[1725467874179,1.00534,2486.6,2486.1,0.00603355]
[1725467874377,1.20696474,2486.6,2486.1,0.40824355]
[1725467874578,0.40216,2486.5,2486.2,0.40219]
[1725467874978,0.40217,2486.4,2486.1,0.40823355]
[1725467875174,3.17995331,2486.8,2486.1,0.00603355]
[1725467875385,0.40213,2486.6,2486.3,0.40217]
[1725467875573,0.40213,2486.6,2486.2,0.40219]
[1725467876174,0.40215,2486.5,2486.2,0.40219]
[1725467876381,0.40216,2486.4,2486.1,0.40823355]
[1725467876590,1.00535,2486.6,2486.1,0.40823355]
[1725467876890,0.20413952,2486.5,2486.1,0.40824355]
[1725467877077,3.78526,2486.8,2486.1,0.00603355]
[1725467877282,1.00529,2486.7,2486.1,0.40823355]
[1725467877585,0.40217,2486.4,2486.1,0.00603355]
[1725467877777,0.40217,2486.4,2486.1,0.40824355]
[1725467877977,0.40216,2486.5,2486.1,0.40824355]
[1725467878179,0.40216,2486.5,2486.2,0.40219]
[1725467878384,0.59992204,2486.5,2486.2,0.40219]
[1725467878582,0.40216,2486.4,2486.1,0.40823355]
[1725467878776,1.00535,2486.6,2486.1,0.00603355]
[1725467878983,0.4022,2486.2,2486.1,0.00603355]
[1725467879382,1.4077,2486.2,2486.1,0.00603355]
[1725467879580,2.78,2486.5,2486.1,0.00603355]
[1725467879787,0.40218,2486.3,2486.1,0.00603355]
[1725467879980,0.4022,2486.2,2486.1,0.00603355]
[1725467880184,1.19975028,2486.7,2486.1,0.00603355]
[1725467880387,0.40214,2486.6,2486.3,0.40217]
[1725467880585,0.40215,2486.5,2486.2,3.60999]
[1725467881084,1.00535,2486.6,2486.1,0.00603355]
[1725467881281,0.40233,2485.4,2485.2,3.2078]
[1725467881481,2.78,2485.8,2485.3,0.8754]
[1725467881787,0.40225,2485.9,2485.4,0.40232]
[1725467882083,2.78,2486.1,2485.3,0.8754]
[1725467882084,3.78555,2486.1,2485.3,0.8754]
[1725467882278,0.40229,2485.6,2485.5,0.00603355]
[1725467882477,0.40229,2485.7,2485.5,0.00603355]
[1725467882693,0.40228,2485.7,2485.5,0.00603355]
[1725467882987,0.60013046,2485.8,2485.5,0.00603355]
[1725467883289,0.40229,2485.6,2485.5,0.00603355]
[1725467883788,1.61023551,2485.6,2485.5,0.00603355]
[1725467884390,14.41343551,2485.6,2485.5,0.00603355]
[1725467884591,14.41343551,2485.6,2484.6,0.4319]
[1725467884592,0.40242,2484.8,2484.7,0.4621]
[1725467884893,2.78,2484.9,2484.7,0.4621]
[1725467885089,3.2078,2485.1,2484.7,0.4621]
[1725467885287,0.40242,2484.8,2484.7,0.4621]
[1725467886285,0.40238,2485.1,2484.7,0.4621]
[1725467886592,2.78,2485.5,2484.7,3.6699]
[1725467886791,2.78,2485.2,2484.7,3.6699]
[1725467886985,0.40242,2484.8,2484.7,0.4621]
[1725467887592,1.40859,2484.6,2484.5,0.00401879]
[1725467887793,4.61639,2484.6,2484.5,0.00401879]
[1725467887997,0.40257,2483.9,2483.6,1.2888]
[1725467888287,2.78,2484.1,2483.6,1.2888]
[1725467888590,2.78,2484.4,2483.6,4.4966]
[1725467888894,0.40257,2483.9,2483.6,4.4966]
[1725467889190,0.20387712,2483.9,2483.6,4.4966]
[1725467889393,3.78635,2484.1,2483.6,1.2888]
[1725467889589,0.40259,2483.8,2483.6,1.2888]
[1725467889790,0.20037276,2483.9,2483.6,1.2888]
[1725467889989,0.40259,2483.8,2483.6,1.2888]
[1725467890190,3.78635,2484.1,2483.6,1.2888]
[1725467890191,0.20586767,2483.9,2483.6,1.2888]
[1725467890394,0.40256,2484.0,2483.6,1.2888]
[1725467890592,0.40856355,2484.2,2483.6,1.2888]
[1725467891288,0.40254,2484.1,2483.6,1.2888]
[1725467891591,0.40254,2484.1,2482.8,1.00686]
[1725467891592,2.78,2483.7,2482.8,3.2078]
[1725467891792,2.98606894,2483.7,2483.0,0.8706]
[1725467891988,0.40269,2483.2,2483.0,0.8706]
[1725467892191,1.00655,2483.6,2483.0,0.8706]
[1725467892387,0.40263,2483.5,2483.0,0.8706]
[1725467892587,1.00655,2483.6,2483.0,0.8706]
[1725467892797,0.40268,2483.2,2483.0,0.8706]
[1725467892988,0.40262,2483.6,2483.0,0.8706]
[1725467893185,0.40265,2483.4,2483.0,0.8706]
[1725467893388,1.00655,2483.6,2483.0,0.8706]
[1725467893588,0.40268,2483.3,2483.0,0.8706]
[1725467893994,0.4027,2483.1,2483.0,0.415]
[1725467894498,0.40275,2482.8,2482.5,0.4556]
[1725467894699,0.40877355,2482.9,2482.6,0.4445]
[1725467895089,0.00603355,2482.9,2482.7,0.40275]
[1725467895286,5.9878,2483.4,2482.8,4.028]
[1725467895490,5.9878,2483.4,2482.9,0.40272]
[1725467895690,5.9878,2483.4,2482.7,0.40276]
[1725467895889,0.40269,2483.2,2482.6,0.84728]
[1725467896090,0.40267,2483.3,2482.7,0.40276]
[1725467896302,0.40267,2483.3,2482.6,0.4445]
[1725467896303,0.00603355,2483.2,2482.8,3.61657355]
[1725467896487,0.40872355,2483.2,2482.8,0.00603355]
[1725467896688,0.40872355,2483.2,2482.8,3.21383355]
[1725467896995,0.00603355,2483.2,2482.8,3.21383355]
[1725467897187,0.00603355,2483.2,2482.9,0.4353]
[1725467897386,0.00603355,2483.2,2482.8,0.00603355]
[1725467897591,0.40273,2482.9,2482.8,0.00603355]
[1725467897794,0.00603355,2483.2,2482.8,0.00603355]
[1725467898000,0.40872355,2483.2,2482.8,3.61657355]
[1725467898203,0.4027,2483.1,2482.8,3.21383355]
[1725467898491,0.00603355,2483.2,2482.8,7.24103355]
[1725467898693,2.78,2484.2,2483.1,3.2078]
[1725467898891,2.97977201,2484.2,2483.8,3.2078]
[1725467899087,2.97977201,2484.2,2483.5,0.40263]
[1725467899302,0.40256,2484.0,2483.5,0.40263]
[1725467899597,2.78,2484.2,2483.7,3.2078]
[1725467899798,0.00603355,2484.0,2483.9,0.40257]
[1725467900092,0.00603355,2484.0,2483.9,3.61037]
[1725467900297,0.40249,2484.5,2483.9,13.63595]
[1725467900493,0.60840481,2484.4,2484.3,3.2078]
[1725467900694,0.40254,2484.1,2483.8,3.2078]
[1725467901702,0.40257,2483.9,2483.8,3.2078]
[1725467901898,0.40256,2484.0,2483.8,3.2078]
[1725467902300,0.00603355,2484.2,2483.9,4.0256]
[1725467902489,0.00603355,2484.2,2484.1,3.2078]
[1725467902690,0.4024,2485.0,2484.1,3.2078]
[1725467903005,0.40237,2485.2,2484.8,3.2078]
[1725467903193,0.40235,2485.3,2484.8,3.2078]
[1725467903396,2.78,2485.4,2484.9,0.4299]
[1725467903705,2.78603355,2485.4,2484.9,0.4299]
[1725467903897,0.00603355,2485.4,2484.9,0.4299]
[1725467904296,0.40235,2485.3,2484.9,0.4299]
[1725467904497,0.00603355,2485.4,2484.9,0.4299]
[1725467904700,0.00603355,2485.4,2485.1,3.2078]
[1725467905292,0.00603355,2485.4,2485.1,13.2318]
[1725467905494,1.23807212,2486.2,2485.2,12.63671]
[1725467905495,0.23257212,2486.2,2485.2,12.63671]
[1725467905700,0.23257212,2486.2,2486.0,3.2078]
[1725467906009,0.40222,2486.1,2486.0,3.2078]
[1725467906497,0.40221,2486.1,2486.0,3.2078]
[1725467906694,0.40224,2486.0,2485.5,3.2078]
[1725467907401,0.23257212,2486.2,2485.5,3.2078]
[1725467907402,0.40227,2485.8,2485.5,3.2078]
[1725467907804,0.40228,2485.7,2485.5,3.2078]
[1725467908004,1.00554,2486.1,2485.5,3.2078]
[1725467908404,0.40229,2485.6,2485.5,3.2078]
[1725467908807,0.40232,2485.4,2485.3,0.4264]
[1725467909020,0.40232,2485.5,2485.3,0.4264]
[1725467909303,0.4023,2485.6,2485.3,0.4264]
[1725467909511,3.2078,2485.9,2485.3,0.4264]
[1725467909512,27.42955355,2486.3,2485.4,3.2078]
[1725467909708,0.40223,2486.0,2485.7,3.2078]
[1725467910008,1.00557,2486.1,2485.3,0.4264]
[1725467910214,0.40229,2485.7,2485.3,0.4264]
[1725467910508,0.19661112,2486.0,2485.5,3.2078]
[1725467910709,0.40224,2486.0,2485.5,3.2078]
[1725467911012,0.20274893,2486.0,2485.5,3.2078]
[1725467911312,0.60497893,2486.0,2485.5,3.2078]
[1725467911611,0.40227,2485.8,2485.5,3.2078]
[1725467912005,1.00554,2486.1,2485.5,3.2078]
[1725467912205,0.4022,2486.2,2485.5,3.2078]
[1725467912407,0.4022,2486.2,2485.3,0.4264]
[1725467912408,26.62632939,2486.3,2485.9,3.2078]
[1725467912610,0.40221,2486.2,2485.9,3.2078]
[1725467912803,0.40221,2486.1,2485.9,3.2078]
[1725467913005,0.4022,2486.2,2486.0,3.2078]
[1725467913207,26.62632939,2486.3,2485.6,3.6407]
[1725467913208,0.40221,2486.1,2485.6,3.6407]
[1725467913411,0.40223,2486.0,2485.6,3.6407]
[1725467913613,0.40224,2485.9,2485.6,3.6407]
[1725467913806,0.40224,2486.0,2485.6,3.6407]
[1725467914201,1.00554,2486.1,2485.6,3.6407]
[1725467914410,0.40227,2485.8,2485.6,3.6407]
[1725467914914,0.40228,2485.7,2485.6,3.2078]
[1725467915215,0.40234,2485.3,2485.2,3.2078]
[1725467915605,0.40237,2485.1,2485.0,0.00603355]
[1725467916111,3.2078,2485.5,2485.0,0.00603355]
[1725467916112,0.40236,2485.2,2485.0,0.00603355]
[1725467916505,0.40237,2485.1,2485.0,0.00603355]
[1725467916709,0.40236,2485.2,2485.0,0.00603355]
[1725467916908,0.40235,2485.3,2485.0,3.21383355]
[1725467917103,0.40237,2485.1,2485.0,0.00603355]
[1725467917506,4.42637,2485.1,2485.0,0.00603355]
[1725467917914,5.43231,2485.1,2485.0,0.00603355]
[1725467919416,6.43825,2485.1,2485.0,0.00603355]
[1725467919614,12.43825,2485.1,2485.0,0.00603355]
[1725467919819,0.4025,2484.3,2484.2,3.2078]
[1725467920023,0.4025,2484.3,2484.1,0.4331]
[1725467920024,1.40882,2484.2,2484.1,0.4331]
[1725467920220,0.40258,2483.8,2483.7,3.2078]
[1725467920516,0.40256,2484.0,2483.7,3.2078]
[1725467920718,0.20015932,2484.2,2483.7,3.2078]
[1725467920719,0.60079848,2484.3,2483.8,0.83568]
[1725467920913,0.40252,2484.2,2484.1,3.2078]
[1725467921510,0.60918566,2484.3,2484.1,3.2078]
[1725467921915,0.40252,2484.2,2484.1,3.2078]
[1725467922321,0.40255,2484.0,2483.8,1.29713355]
[1725467922617,0.40254,2484.1,2483.8,1.29713355]
[1725467922814,0.40257,2483.9,2483.8,1.29713355]
[1725467923129,0.40257,2483.9,2483.8,0.43913355]
[1725467924017,3.18257,2483.9,2483.8,0.43913355]
[1725467924520,3.18257,2483.9,2483.8,0.00603355]
[1725467925317,8.2154,2483.9,2483.8,0.00603355]
[1725467925725,11.4232,2483.9,2483.8,0.00603355]
[1725467926210,3.18257,2483.9,2483.8,0.00603355]
[1725467926617,2.78,2483.9,2483.8,0.00603355]
[1725467926821,3.18257,2483.9,2483.8,0.00603355]
[1725467927116,8.2154,2483.9,2483.8,0.00603355]
[1725467927322,1.40922,2483.5,2483.4,0.4211]
[1725467927520,0.40269,2483.2,2483.0,39.53095493]
[1725467927719,2.78,2483.6,2483.0,39.53095493]
[1725467927720,2.78,2483.3,2483.0,39.53095493]
[1725467927928,0.4027,2483.1,2483.0,36.32315493]
[1725467929221,0.40269,2483.2,2483.0,36.32315493]
[1725467929518,2.78,2483.3,2483.0,36.32315493]
[1725467929714,0.4027,2483.1,2483.0,36.32315493]
[1725467930115,4.4299,2483.1,2483.0,36.32315493]
[1725467931719,0.40269,2483.2,2483.0,36.32315493]
[1725467932026,2.78,2483.3,2483.0,39.53095493]
[1725467932027,3.18267,2483.3,2483.0,39.53095493]
[1725467932223,0.40262,2483.6,2483.1,4.0272]
[1725467932427,0.40262,2483.6,2483.3,3.2078]
[1725467932724,0.40261,2483.7,2483.3,3.2078]
[1725467932928,0.40262,2483.6,2483.3,3.2078]
[1725467933128,0.40263,2483.5,2483.3,3.2078]
[1725467933428,3.18262,2483.6,2483.3,3.2078]
[1725467933930,2.78,2483.6,2483.3,3.2078]
[1725467934132,4.21415,2484.1,2483.3,3.2078]
[1725467934133,3.2078,2484.1,2483.3,3.2078]
[1725467934427,0.40256,2484.0,2483.4,0.40265]
[1725467934632,0.40256,2484.0,2483.5,0.8719]
[1725467935130,6.18273125,2484.1,2483.5,0.8719]
[1725467935320,0.40259,2483.8,2483.5,0.8719]
[1725467936027,0.40256,2484.0,2483.6,3.2078]
[1725467936235,6.18273125,2484.1,2483.6,3.2078]
[1725467936434,0.40259,2483.8,2483.5,0.8719]
[1725467936731,1.00639,2484.0,2483.5,0.8719]
[1725467937024,0.40259,2483.8,2483.3,0.40266]
[1725467937233,2.78,2483.5,2483.1,3.2078]
[1725467937428,2.78,2483.5,2482.9,1.2947]
[1725467937625,3.7867,2483.3,2482.9,1.2947]
[1725467937934,0.40271,2483.0,2482.9,1.2947]
[1725467938527,0.60891923,2483.0,2482.9,1.2947]
[1725467939133,8.42290923,2483.0,2482.9,0.4484]
[1725467939835,0.60891923,2483.0,2482.9,0.4484]
[1725467940335,0.40271,2483.0,2482.9,0.3484]
[1725467940933,0.60317248,2483.0,2482.9,0.3484]
[1725467941133,2.78,2483.2,2482.9,3.5562]
[1725467941332,3.18269,2483.2,2482.9,3.9918]
[1725467941533,3.18268,2483.2,2482.9,3.9918]
[1725467941735,2.78,2483.2,2482.9,3.9918]
[1725467942842,0.40271,2483.0,2482.9,3.9918]
[1725467944033,0.40271,2483.0,2482.9,0.784]
[1725467944232,4.1895,2483.0,2482.9,0.3484]
[1725467944426,8.2167,2483.0,2482.9,0.3484]
[1725467945635,8.2167,2483.0,2482.8,0.00603355]
[1725467945636,1.40956,2482.9,2482.8,0.00603355]
[1725467945839,0.40273,2482.9,2482.8,0.00603355]
[1725467946543,1.40956,2482.9,2482.8,0.00603355]
[1725467947050,2.41639,2482.9,2482.8,0.00603355]
[1725467947945,6.44439,2482.9,2482.8,0.00603355]
[1725467948252,0.40282,2482.4,2482.1,0.4249]
[1725467948551,0.40282,2482.4,2482.2,0.4104]
[1725467948943,0.40281,2482.5,2482.2,0.4104]
[1725467949346,0.40882355,2482.6,2482.3,3.2078]
[1725467949653,0.40882355,2482.6,2482.3,3.6332]
[1725467949847,1.00683,2482.9,2482.3,3.6332]
[1725467949848,2.78,2482.9,2482.3,3.6332]
[1725467950050,2.78,2482.4,2482.3,0.4254]
[1725467950253,0.40281,2482.5,2482.3,0.4254]
[1725467950441,2.78,2482.5,2482.3,0.4254]
[1725467950640,3.2078,2482.8,2482.4,4.4384]
[1725467950944,2.78,2483.3,2482.7,0.40276]
[1725467951147,3.2078,2482.9,2482.4,0.4104]
[1725467951353,4.21466,2482.9,2482.4,0.4104]
[1725467951651,0.40278,2482.6,2482.4,0.4104]
[1725467951851,4.41692194,2482.9,2482.4,0.4104]
[1725467952049,0.40279,2482.5,2482.4,0.4104]
[1725467952749,1.40978,2482.5,2482.4,0.4104]
[1725467953055,0.40279,2482.5,2482.4,0.4104]
[1725467955955,0.40279,2482.5,2482.3,0.4254]
[1725467955956,0.40281,2482.4,2482.3,0.4254]
[1725467956649,3.18281,2482.5,2482.3,0.4254]
[1725467956958,2.78,2482.5,2482.3,0.4254]
[1725467957455,0.40281,2482.4,2482.3,0.4254]
[1725467957952,3.1828,2482.5,2482.3,0.4254]
[1725467958153,0.40281,2482.4,2482.3,0.4254]
[1725467958753,2.78,2482.5,2482.3,0.4254]
[1725467959057,0.00603355,2482.9,2482.4,4.028]
[1725467959356,2.78,2482.6,2482.3,0.4254]
[1725467959660,0.40279,2482.5,2482.3,0.4254]
[1725467959961,0.40281,2482.4,2482.3,0.4254]
[1725467961655,0.40284,2482.2,2482.1,0.00603355]
[1725467962055,3.61064,2482.2,2482.1,0.00603355]
[1725467962256,8.64656,2482.2,2482.1,0.00603355]
[1725467962461,3.18289,2481.9,2481.8,0.22953355]
[1725467962657,6.5929743,2481.9,2481.8,0.22953355]
[1725467963556,2.9822843,2481.9,2481.8,0.22953355]
[1725467963961,2.78,2482.1,2481.8,0.22953355]
[1725467964565,2.78,2482.1,2481.9,0.4105]
[1725467965273,0.40288,2482.0,2481.8,0.22953355]
[1725467965662,3.18287,2482.1,2481.8,0.22953355]
[1725467965967,0.40288,2482.0,2481.8,0.22953355]
[1725467966163,5.9878,2481.9,2481.6,0.00603355]
[1725467966368,6.3907,2481.9,2481.6,0.00603355]
[1725467966670,2.78,2481.9,2481.6,0.00603355]
[1725467966966,2.97829583,2481.9,2481.6,0.00603355]
[1725467967167,3.2078,2482.2,2481.6,0.00603355]
[1725467967168,2.78,2482.1,2481.6,0.00603355]
[1725467967367,2.78,2482.1,2481.6,0.40896355]
[1725467967669,3.2078,2482.2,2481.6,0.40896355]
[1725467967670,3.2078,2482.2,2481.7,0.40292]
[1725467967860,2.78,2482.1,2481.6,3.61676355]
[1725467968067,2.78,2482.1,2481.6,0.40896355]
[1725467968267,2.78,2482.1,2481.6,0.00603355]
[1725467968564,3.18287,2482.1,2481.6,0.00603355]
[1725467968767,0.40288,2482.0,2481.6,0.00603355]
[1725467969262,2.78,2482.1,2481.6,0.00603355]
[1725467969263,0.40291,2481.8,2481.6,0.00603355]